{"text_format":"3","workbook":"xlsx","n_sheets":5,"sheets":["Sažetak od poč. godine do danas","1. tromjesečje","2. tromjesečje","3. tromjesečje","4. tromjesečje"],"not_rendered":{"defined_names":12},"read":"whole","date_system":"1900"}

{"sheet":"Sažetak od poč. godine do danas","index":0,"n_rows":36,"n_cols":12,"rows_kept":36,"merged":[[3,0,3,6]]}
["Naziv tvrtke"]
["Evidencija prisutnosti, sažetak od početka godine do danas"]
["Datum"]
[{"$f":"Naziv_tvrtke","v":"Naziv tvrtke"},{"$nulls":6},"POVJERLJIVO"]
["Prezime","Ime","Godišnji odmor","Slobodni dani","Bolovanje","OIB","Radno mjesto","Nadzornik","Datum zapošljavanja","Komentari","Dani godišnjeg \nodmora godišnje","Dani godišnjeg \nodmora preostali"]
["Prezime","Ime",{"$f":"SUM('1. tromjesečje:4. tromjesečje'!C6)","v":3},{"$f":"SUM('1. tromjesečje:4. tromjesečje'!D6)","v":0},{"$f":"SUM('1. tromjesečje:4. tromjesečje'!E6)","v":1},"xxxxxxxxxxx","Rukovoditelj","Ime i prezime",null,null,10,{"$f":"K6-C6","v":7}]
[null,null,{"$f":"SUM('1. tromjesečje:4. tromjesečje'!C7)","v":0},{"$f":"SUM('1. tromjesečje:4. tromjesečje'!D7)","v":0},{"$f":"SUM('1. tromjesečje:4. tromjesečje'!E7)","v":0},{"$nulls":6},{"$f":"K7-C7","v":0}]
[null,null,{"$f":"SUM('1. tromjesečje:4. tromjesečje'!C8)","v":0},{"$f":"SUM('1. tromjesečje:4. tromjesečje'!D8)","v":0},{"$f":"SUM('1. tromjesečje:4. tromjesečje'!E8)","v":0},{"$nulls":6},0]
[null,null,{"$f":"SUM('1. tromjesečje:4. tromjesečje'!C9)","v":0},{"$f":"SUM('1. tromjesečje:4. tromjesečje'!D9)","v":0},{"$f":"SUM('1. tromjesečje:4. tromjesečje'!E9)","v":0},{"$nulls":6},0]
[null,null,{"$f":"SUM('1. tromjesečje:4. tromjesečje'!C10)","v":0},{"$f":"SUM('1. tromjesečje:4. tromjesečje'!D10)","v":0},{"$f":"SUM('1. tromjesečje:4. tromjesečje'!E10)","v":0},{"$nulls":6},0]
[null,null,{"$f":"SUM('1. tromjesečje:4. tromjesečje'!C11)","v":0},{"$f":"SUM('1. tromjesečje:4. tromjesečje'!D11)","v":0},{"$f":"SUM('1. tromjesečje:4. tromjesečje'!E11)","v":0},{"$nulls":6},0]
[null,null,{"$f":"SUM('1. tromjesečje:4. tromjesečje'!C12)","v":0},{"$f":"SUM('1. tromjesečje:4. tromjesečje'!D12)","v":0},{"$f":"SUM('1. tromjesečje:4. tromjesečje'!E12)","v":0},{"$nulls":6},0]
[null,null,{"$f":"SUM('1. tromjesečje:4. tromjesečje'!C13)","v":0},{"$f":"SUM('1. tromjesečje:4. tromjesečje'!D13)","v":0},{"$f":"SUM('1. tromjesečje:4. tromjesečje'!E13)","v":0},{"$nulls":6},0]
[null,null,{"$f":"SUM('1. tromjesečje:4. tromjesečje'!C14)","v":0},{"$f":"SUM('1. tromjesečje:4. tromjesečje'!D14)","v":0},{"$f":"SUM('1. tromjesečje:4. tromjesečje'!E14)","v":0},{"$nulls":6},0]
[null,null,{"$f":"SUM('1. tromjesečje:4. tromjesečje'!C15)","v":0},{"$f":"SUM('1. tromjesečje:4. tromjesečje'!D15)","v":0},{"$f":"SUM('1. tromjesečje:4. tromjesečje'!E15)","v":0},{"$nulls":6},0]
[null,null,{"$f":"SUM('1. tromjesečje:4. tromjesečje'!C16)","v":0},{"$f":"SUM('1. tromjesečje:4. tromjesečje'!D16)","v":0},{"$f":"SUM('1. tromjesečje:4. tromjesečje'!E16)","v":0},{"$nulls":6},0]
[null,null,{"$f":"SUM('1. tromjesečje:4. tromjesečje'!C17)","v":0},{"$f":"SUM('1. tromjesečje:4. tromjesečje'!D17)","v":0},{"$f":"SUM('1. tromjesečje:4. tromjesečje'!E17)","v":0},{"$nulls":6},0]
[null,null,{"$f":"SUM('1. tromjesečje:4. tromjesečje'!C18)","v":0},{"$f":"SUM('1. tromjesečje:4. tromjesečje'!D18)","v":0},{"$f":"SUM('1. tromjesečje:4. tromjesečje'!E18)","v":0},{"$nulls":6},0]
[null,null,{"$f":"SUM('1. tromjesečje:4. tromjesečje'!C19)","v":0},{"$f":"SUM('1. tromjesečje:4. tromjesečje'!D19)","v":0},{"$f":"SUM('1. tromjesečje:4. tromjesečje'!E19)","v":0},{"$nulls":6},0]
[null,null,{"$f":"SUM('1. tromjesečje:4. tromjesečje'!C20)","v":0},{"$f":"SUM('1. tromjesečje:4. tromjesečje'!D20)","v":0},{"$f":"SUM('1. tromjesečje:4. tromjesečje'!E20)","v":0},{"$nulls":6},0]
[null,null,{"$f":"SUM('1. tromjesečje:4. tromjesečje'!C21)","v":0},{"$f":"SUM('1. tromjesečje:4. tromjesečje'!D21)","v":0},{"$f":"SUM('1. tromjesečje:4. tromjesečje'!E21)","v":0},{"$nulls":6},0]
[null,null,{"$f":"SUM('1. tromjesečje:4. tromjesečje'!C22)","v":0},{"$f":"SUM('1. tromjesečje:4. tromjesečje'!D22)","v":0},{"$f":"SUM('1. tromjesečje:4. tromjesečje'!E22)","v":0},{"$nulls":6},0]
[null,null,{"$f":"SUM('1. tromjesečje:4. tromjesečje'!C23)","v":0},{"$f":"SUM('1. tromjesečje:4. tromjesečje'!D23)","v":0},{"$f":"SUM('1. tromjesečje:4. tromjesečje'!E23)","v":0},{"$nulls":6},0]
[null,null,{"$f":"SUM('1. tromjesečje:4. tromjesečje'!C24)","v":0},{"$f":"SUM('1. tromjesečje:4. tromjesečje'!D24)","v":0},{"$f":"SUM('1. tromjesečje:4. tromjesečje'!E24)","v":0},{"$nulls":6},0]
[null,null,{"$f":"SUM('1. tromjesečje:4. tromjesečje'!C25)","v":0},{"$f":"SUM('1. tromjesečje:4. tromjesečje'!D25)","v":0},{"$f":"SUM('1. tromjesečje:4. tromjesečje'!E25)","v":0},{"$nulls":6},0]
[null,null,{"$f":"SUM('1. tromjesečje:4. tromjesečje'!C26)","v":0},{"$f":"SUM('1. tromjesečje:4. tromjesečje'!D26)","v":0},{"$f":"SUM('1. tromjesečje:4. tromjesečje'!E26)","v":0},{"$nulls":6},0]
[null,null,{"$f":"SUM('1. tromjesečje:4. tromjesečje'!C27)","v":0},{"$f":"SUM('1. tromjesečje:4. tromjesečje'!D27)","v":0},{"$f":"SUM('1. tromjesečje:4. tromjesečje'!E27)","v":0},{"$nulls":6},0]
[null,null,{"$f":"SUM('1. tromjesečje:4. tromjesečje'!C28)","v":0},{"$f":"SUM('1. tromjesečje:4. tromjesečje'!D28)","v":0},{"$f":"SUM('1. tromjesečje:4. tromjesečje'!E28)","v":0},{"$nulls":6},0]
[null,null,{"$f":"SUM('1. tromjesečje:4. tromjesečje'!C29)","v":0},{"$f":"SUM('1. tromjesečje:4. tromjesečje'!D29)","v":0},{"$f":"SUM('1. tromjesečje:4. tromjesečje'!E29)","v":0},{"$nulls":6},0]
[null,null,{"$f":"SUM('1. tromjesečje:4. tromjesečje'!C30)","v":0},{"$f":"SUM('1. tromjesečje:4. tromjesečje'!D30)","v":0},{"$f":"SUM('1. tromjesečje:4. tromjesečje'!E30)","v":0},{"$nulls":6},0]
[null,null,{"$f":"SUM('1. tromjesečje:4. tromjesečje'!C31)","v":0},{"$f":"SUM('1. tromjesečje:4. tromjesečje'!D31)","v":0},{"$f":"SUM('1. tromjesečje:4. tromjesečje'!E31)","v":0},{"$nulls":6},0]
[null,null,{"$f":"SUM('1. tromjesečje:4. tromjesečje'!C32)","v":0},{"$f":"SUM('1. tromjesečje:4. tromjesečje'!D32)","v":0},{"$f":"SUM('1. tromjesečje:4. tromjesečje'!E32)","v":0},{"$nulls":6},0]
[null,null,{"$f":"SUM('1. tromjesečje:4. tromjesečje'!C33)","v":0},{"$f":"SUM('1. tromjesečje:4. tromjesečje'!D33)","v":0},{"$f":"SUM('1. tromjesečje:4. tromjesečje'!E33)","v":0},{"$nulls":6},0]
[null,null,{"$f":"SUM('1. tromjesečje:4. tromjesečje'!C34)","v":0},{"$f":"SUM('1. tromjesečje:4. tromjesečje'!D34)","v":0},{"$f":"SUM('1. tromjesečje:4. tromjesečje'!E34)","v":0},{"$nulls":6},0]
[null,null,{"$f":"SUM('1. tromjesečje:4. tromjesečje'!C35)","v":0},{"$f":"SUM('1. tromjesečje:4. tromjesečje'!D35)","v":0},{"$f":"SUM('1. tromjesečje:4. tromjesečje'!E35)","v":0},{"$nulls":6},0]
[null,null,{"$f":"SUM('1. tromjesečje:4. tromjesečje'!C36)","v":0},{"$f":"SUM('1. tromjesečje:4. tromjesečje'!D36)","v":0},{"$f":"SUM('1. tromjesečje:4. tromjesečje'!E36)","v":0},{"$nulls":6},0]

{"sheet":"1. tromjesečje","index":1,"n_rows":36,"n_cols":95,"rows_kept":36,"merged":[[3,0,3,6]]}
[{"$f":"Naziv_tvrtke","v":"Naziv tvrtke"}]
["Evidencija prisutnosti, 1. tromjesečje"]
["Datum"]
[{"$f":"Naziv_tvrtke","v":"Naziv tvrtke"},{"$nulls":6},"POVJERLJIVO"]
["Prezime","Ime","Godišnji odmor","Slobodni dani","Bolovanje","1.1.","2.1.","3.1.","4.1.","5.1.","6.1.","7.1.","8.1.","9.1.","10.1.","11.1.","12.1.","13.1.","14.1.","15.1.","16.1.","17.1.","18.1.","19.1.","20.1.","21.1.","22.1.","23.1.","24.1.","25.1.","26.1.","27.1.","28.1.","29.1.","30.1.","31.1.","1.2.","2.2.","3.2.","4.2.","5.2.","6.2.","7.2.","8.2.","9.2.","10.2.","11.2.","12.2.","13.2.","14.2.","15.2.","16.2.","17.2.","18.2.","19.2.","20.2.","21.2.","22.2.","23.2.","24.2.","25.2.","26.2.","27.2.","28.2.","1.3.","2.3.","3.3.","4.3.","5.3.","6.3.","7.3.","8.3.","9.3.","10.3.","11.3.","12.3.","13.3.","14.3.","15.3.","16.3.","17.3.","18.3.","19.3.","20.3.","21.3.","22.3.","23.3.","24.3.","25.3.","26.3.","27.3.","28.3.","29.3.","30.3.","31.3."]
[{"$f":"IF(ISBLANK('Sažetak od poč. godine do danas'!A6),\"\",'Sažetak od poč. godine do danas'!A6)","v":"Prezime"},{"$f":"IF(ISBLANK('Sažetak od poč. godine do danas'!B6),\"\",'Sažetak od poč. godine do danas'!B6)","v":"Ime"},{"$f":"COUNTIF($F6:$CQ6, \"G\")","v":3},{"$f":"COUNTIF($F6:$CQ6, \"S\")","v":0},{"$f":"COUNTIF($F6:$CQ6, \"B\")","v":1},"g","g","g",{"$nulls":4},"b"]
[{"$f":"IF(ISBLANK('Sažetak od poč. godine do danas'!A7),\"\",'Sažetak od poč. godine do danas'!A7)","v":""},{"$f":"IF(ISBLANK('Sažetak od poč. godine do danas'!B7),\"\",'Sažetak od poč. godine do danas'!B7)","v":""},0,0,0]
[{"$f":"IF(ISBLANK('Sažetak od poč. godine do danas'!A8),\"\",'Sažetak od poč. godine do danas'!A8)","v":""},{"$f":"IF(ISBLANK('Sažetak od poč. godine do danas'!B8),\"\",'Sažetak od poč. godine do danas'!B8)","v":""},0,0,0]
[{"$f":"IF(ISBLANK('Sažetak od poč. godine do danas'!A9),\"\",'Sažetak od poč. godine do danas'!A9)","v":""},{"$f":"IF(ISBLANK('Sažetak od poč. godine do danas'!B9),\"\",'Sažetak od poč. godine do danas'!B9)","v":""},0,0,0]
[{"$f":"IF(ISBLANK('Sažetak od poč. godine do danas'!A10),\"\",'Sažetak od poč. godine do danas'!A10)","v":""},{"$f":"IF(ISBLANK('Sažetak od poč. godine do danas'!B10),\"\",'Sažetak od poč. godine do danas'!B10)","v":""},0,0,0]
[{"$f":"IF(ISBLANK('Sažetak od poč. godine do danas'!A11),\"\",'Sažetak od poč. godine do danas'!A11)","v":""},{"$f":"IF(ISBLANK('Sažetak od poč. godine do danas'!B11),\"\",'Sažetak od poč. godine do danas'!B11)","v":""},0,0,0]
[{"$f":"IF(ISBLANK('Sažetak od poč. godine do danas'!A12),\"\",'Sažetak od poč. godine do danas'!A12)","v":""},{"$f":"IF(ISBLANK('Sažetak od poč. godine do danas'!B12),\"\",'Sažetak od poč. godine do danas'!B12)","v":""},0,0,0]
[{"$f":"IF(ISBLANK('Sažetak od poč. godine do danas'!A13),\"\",'Sažetak od poč. godine do danas'!A13)","v":""},{"$f":"IF(ISBLANK('Sažetak od poč. godine do danas'!B13),\"\",'Sažetak od poč. godine do danas'!B13)","v":""},0,0,0]
[{"$f":"IF(ISBLANK('Sažetak od poč. godine do danas'!A14),\"\",'Sažetak od poč. godine do danas'!A14)","v":""},{"$f":"IF(ISBLANK('Sažetak od poč. godine do danas'!B14),\"\",'Sažetak od poč. godine do danas'!B14)","v":""},0,0,0]
[{"$f":"IF(ISBLANK('Sažetak od poč. godine do danas'!A15),\"\",'Sažetak od poč. godine do danas'!A15)","v":""},{"$f":"IF(ISBLANK('Sažetak od poč. godine do danas'!B15),\"\",'Sažetak od poč. godine do danas'!B15)","v":""},0,0,0]
[{"$f":"IF(ISBLANK('Sažetak od poč. godine do danas'!A16),\"\",'Sažetak od poč. godine do danas'!A16)","v":""},{"$f":"IF(ISBLANK('Sažetak od poč. godine do danas'!B16),\"\",'Sažetak od poč. godine do danas'!B16)","v":""},0,0,0]
[{"$f":"IF(ISBLANK('Sažetak od poč. godine do danas'!A17),\"\",'Sažetak od poč. godine do danas'!A17)","v":""},{"$f":"IF(ISBLANK('Sažetak od poč. godine do danas'!B17),\"\",'Sažetak od poč. godine do danas'!B17)","v":""},0,0,0]
[{"$f":"IF(ISBLANK('Sažetak od poč. godine do danas'!A18),\"\",'Sažetak od poč. godine do danas'!A18)","v":""},{"$f":"IF(ISBLANK('Sažetak od poč. godine do danas'!B18),\"\",'Sažetak od poč. godine do danas'!B18)","v":""},0,0,0]
[{"$f":"IF(ISBLANK('Sažetak od poč. godine do danas'!A19),\"\",'Sažetak od poč. godine do danas'!A19)","v":""},{"$f":"IF(ISBLANK('Sažetak od poč. godine do danas'!B19),\"\",'Sažetak od poč. godine do danas'!B19)","v":""},0,0,0]
[{"$f":"IF(ISBLANK('Sažetak od poč. godine do danas'!A20),\"\",'Sažetak od poč. godine do danas'!A20)","v":""},{"$f":"IF(ISBLANK('Sažetak od poč. godine do danas'!B20),\"\",'Sažetak od poč. godine do danas'!B20)","v":""},0,0,0]
[{"$f":"IF(ISBLANK('Sažetak od poč. godine do danas'!A21),\"\",'Sažetak od poč. godine do danas'!A21)","v":""},{"$f":"IF(ISBLANK('Sažetak od poč. godine do danas'!B21),\"\",'Sažetak od poč. godine do danas'!B21)","v":""},0,0,0]
[{"$f":"IF(ISBLANK('Sažetak od poč. godine do danas'!A22),\"\",'Sažetak od poč. godine do danas'!A22)","v":""},{"$f":"IF(ISBLANK('Sažetak od poč. godine do danas'!B22),\"\",'Sažetak od poč. godine do danas'!B22)","v":""},0,0,0]
[{"$f":"IF(ISBLANK('Sažetak od poč. godine do danas'!A23),\"\",'Sažetak od poč. godine do danas'!A23)","v":""},{"$f":"IF(ISBLANK('Sažetak od poč. godine do danas'!B23),\"\",'Sažetak od poč. godine do danas'!B23)","v":""},0,0,0]
[{"$f":"IF(ISBLANK('Sažetak od poč. godine do danas'!A24),\"\",'Sažetak od poč. godine do danas'!A24)","v":""},{"$f":"IF(ISBLANK('Sažetak od poč. godine do danas'!B24),\"\",'Sažetak od poč. godine do danas'!B24)","v":""},0,0,0]
[{"$f":"IF(ISBLANK('Sažetak od poč. godine do danas'!A25),\"\",'Sažetak od poč. godine do danas'!A25)","v":""},{"$f":"IF(ISBLANK('Sažetak od poč. godine do danas'!B25),\"\",'Sažetak od poč. godine do danas'!B25)","v":""},0,0,0]
[{"$f":"IF(ISBLANK('Sažetak od poč. godine do danas'!A26),\"\",'Sažetak od poč. godine do danas'!A26)","v":""},{"$f":"IF(ISBLANK('Sažetak od poč. godine do danas'!B26),\"\",'Sažetak od poč. godine do danas'!B26)","v":""},0,0,0]
[{"$f":"IF(ISBLANK('Sažetak od poč. godine do danas'!A27),\"\",'Sažetak od poč. godine do danas'!A27)","v":""},{"$f":"IF(ISBLANK('Sažetak od poč. godine do danas'!B27),\"\",'Sažetak od poč. godine do danas'!B27)","v":""},0,0,0]
[{"$f":"IF(ISBLANK('Sažetak od poč. godine do danas'!A28),\"\",'Sažetak od poč. godine do danas'!A28)","v":""},{"$f":"IF(ISBLANK('Sažetak od poč. godine do danas'!B28),\"\",'Sažetak od poč. godine do danas'!B28)","v":""},0,0,0]
[{"$f":"IF(ISBLANK('Sažetak od poč. godine do danas'!A29),\"\",'Sažetak od poč. godine do danas'!A29)","v":""},{"$f":"IF(ISBLANK('Sažetak od poč. godine do danas'!B29),\"\",'Sažetak od poč. godine do danas'!B29)","v":""},0,0,0]
[{"$f":"IF(ISBLANK('Sažetak od poč. godine do danas'!A30),\"\",'Sažetak od poč. godine do danas'!A30)","v":""},{"$f":"IF(ISBLANK('Sažetak od poč. godine do danas'!B30),\"\",'Sažetak od poč. godine do danas'!B30)","v":""},0,0,0]
[{"$f":"IF(ISBLANK('Sažetak od poč. godine do danas'!A31),\"\",'Sažetak od poč. godine do danas'!A31)","v":""},{"$f":"IF(ISBLANK('Sažetak od poč. godine do danas'!B31),\"\",'Sažetak od poč. godine do danas'!B31)","v":""},0,0,0]
[{"$f":"IF(ISBLANK('Sažetak od poč. godine do danas'!A32),\"\",'Sažetak od poč. godine do danas'!A32)","v":""},{"$f":"IF(ISBLANK('Sažetak od poč. godine do danas'!B32),\"\",'Sažetak od poč. godine do danas'!B32)","v":""},0,0,0]
[{"$f":"IF(ISBLANK('Sažetak od poč. godine do danas'!A33),\"\",'Sažetak od poč. godine do danas'!A33)","v":""},{"$f":"IF(ISBLANK('Sažetak od poč. godine do danas'!B33),\"\",'Sažetak od poč. godine do danas'!B33)","v":""},0,0,0]
[{"$f":"IF(ISBLANK('Sažetak od poč. godine do danas'!A34),\"\",'Sažetak od poč. godine do danas'!A34)","v":""},{"$f":"IF(ISBLANK('Sažetak od poč. godine do danas'!B34),\"\",'Sažetak od poč. godine do danas'!B34)","v":""},0,0,0]
[{"$f":"IF(ISBLANK('Sažetak od poč. godine do danas'!A35),\"\",'Sažetak od poč. godine do danas'!A35)","v":""},{"$f":"IF(ISBLANK('Sažetak od poč. godine do danas'!B35),\"\",'Sažetak od poč. godine do danas'!B35)","v":""},0,0,0]
[{"$f":"IF(ISBLANK('Sažetak od poč. godine do danas'!A36),\"\",'Sažetak od poč. godine do danas'!A36)","v":""},{"$f":"IF(ISBLANK('Sažetak od poč. godine do danas'!B36),\"\",'Sažetak od poč. godine do danas'!B36)","v":""},0,0,0]

{"sheet":"2. tromjesečje","index":2,"n_rows":36,"n_cols":96,"rows_kept":36,"merged":[[3,0,3,6]]}
[{"$f":"Naziv_tvrtke","v":"Naziv tvrtke"}]
["Evidencija prisutnosti, 2. tromjesečje"]
["Datum"]
[{"$f":"Naziv_tvrtke","v":"Naziv tvrtke"},{"$nulls":6},"POVJERLJIVO"]
["Prezime","Ime","Godišnji odmor","Slobodni dani","Bolovanje","1.4.","2.4.","3.4.","4.4.","5.4.","6.4.","7.4.","8.4.","9.4.","10.4.","11.4.","12.4.","13.4.","14.4.","15.4.","16.4.","17.4.","18.4.","19.4.","20.4.","21.4.","22.4.","23.4.","24.4.","25.4.","26.4.","27.4.","28.4.","29.4.","30.4.","1.5.","2.5.","3.5.","4.5.","5.5.","6.5.","7.5.","8.5.","9.5.","10.5.","11.5.","12.5.","13.5.","14.5.","15.5.","16.5.","17.5.","18.5.","19.5.","20.5.","21.5.","22.5.","23.5.","24.5.","25.5.","26.5.","27.5.","28.5.","29.5.","30.5.","31.5.","1.6.","2.6.","3.6.","4.6.","5.6.","6.6.","7.6.","8.6.","9.6.","10.6.","11.6.","12.6.","13.6.","14.6.","15.6.","16.6.","17.6.","18.6.","19.6.","20.6.","21.6.","22.6.","23.6.","24.6.","25.6.","26.6.","27.6.","28.6.","29.6.","30.6."]
[{"$f":"IF(ISBLANK('Sažetak od poč. godine do danas'!A6),\"\",'Sažetak od poč. godine do danas'!A6)","v":"Prezime"},{"$f":"IF(ISBLANK('Sažetak od poč. godine do danas'!B6),\"\",'Sažetak od poč. godine do danas'!B6)","v":"Ime"},{"$f":"COUNTIF($F6:$CR6, \"G\")","v":0},{"$f":"COUNTIF($F6:$CR6, \"S\")","v":0},{"$f":"COUNTIF($F6:$CR6, \"B\")","v":0}]
[{"$f":"IF(ISBLANK('Sažetak od poč. godine do danas'!A7),\"\",'Sažetak od poč. godine do danas'!A7)","v":""},{"$f":"IF(ISBLANK('Sažetak od poč. godine do danas'!B7),\"\",'Sažetak od poč. godine do danas'!B7)","v":""},0,0,0]
[{"$f":"IF(ISBLANK('Sažetak od poč. godine do danas'!A8),\"\",'Sažetak od poč. godine do danas'!A8)","v":""},{"$f":"IF(ISBLANK('Sažetak od poč. godine do danas'!B8),\"\",'Sažetak od poč. godine do danas'!B8)","v":""},0,0,0]
[{"$f":"IF(ISBLANK('Sažetak od poč. godine do danas'!A9),\"\",'Sažetak od poč. godine do danas'!A9)","v":""},{"$f":"IF(ISBLANK('Sažetak od poč. godine do danas'!B9),\"\",'Sažetak od poč. godine do danas'!B9)","v":""},0,0,0]
[{"$f":"IF(ISBLANK('Sažetak od poč. godine do danas'!A10),\"\",'Sažetak od poč. godine do danas'!A10)","v":""},{"$f":"IF(ISBLANK('Sažetak od poč. godine do danas'!B10),\"\",'Sažetak od poč. godine do danas'!B10)","v":""},0,0,0]
[{"$f":"IF(ISBLANK('Sažetak od poč. godine do danas'!A11),\"\",'Sažetak od poč. godine do danas'!A11)","v":""},{"$f":"IF(ISBLANK('Sažetak od poč. godine do danas'!B11),\"\",'Sažetak od poč. godine do danas'!B11)","v":""},0,0,0]
[{"$f":"IF(ISBLANK('Sažetak od poč. godine do danas'!A12),\"\",'Sažetak od poč. godine do danas'!A12)","v":""},{"$f":"IF(ISBLANK('Sažetak od poč. godine do danas'!B12),\"\",'Sažetak od poč. godine do danas'!B12)","v":""},0,0,0]
[{"$f":"IF(ISBLANK('Sažetak od poč. godine do danas'!A13),\"\",'Sažetak od poč. godine do danas'!A13)","v":""},{"$f":"IF(ISBLANK('Sažetak od poč. godine do danas'!B13),\"\",'Sažetak od poč. godine do danas'!B13)","v":""},0,0,0]
[{"$f":"IF(ISBLANK('Sažetak od poč. godine do danas'!A14),\"\",'Sažetak od poč. godine do danas'!A14)","v":""},{"$f":"IF(ISBLANK('Sažetak od poč. godine do danas'!B14),\"\",'Sažetak od poč. godine do danas'!B14)","v":""},0,0,0]
[{"$f":"IF(ISBLANK('Sažetak od poč. godine do danas'!A15),\"\",'Sažetak od poč. godine do danas'!A15)","v":""},{"$f":"IF(ISBLANK('Sažetak od poč. godine do danas'!B15),\"\",'Sažetak od poč. godine do danas'!B15)","v":""},0,0,0]
[{"$f":"IF(ISBLANK('Sažetak od poč. godine do danas'!A16),\"\",'Sažetak od poč. godine do danas'!A16)","v":""},{"$f":"IF(ISBLANK('Sažetak od poč. godine do danas'!B16),\"\",'Sažetak od poč. godine do danas'!B16)","v":""},0,0,0]
[{"$f":"IF(ISBLANK('Sažetak od poč. godine do danas'!A17),\"\",'Sažetak od poč. godine do danas'!A17)","v":""},{"$f":"IF(ISBLANK('Sažetak od poč. godine do danas'!B17),\"\",'Sažetak od poč. godine do danas'!B17)","v":""},0,0,0]
[{"$f":"IF(ISBLANK('Sažetak od poč. godine do danas'!A18),\"\",'Sažetak od poč. godine do danas'!A18)","v":""},{"$f":"IF(ISBLANK('Sažetak od poč. godine do danas'!B18),\"\",'Sažetak od poč. godine do danas'!B18)","v":""},0,0,0]
[{"$f":"IF(ISBLANK('Sažetak od poč. godine do danas'!A19),\"\",'Sažetak od poč. godine do danas'!A19)","v":""},{"$f":"IF(ISBLANK('Sažetak od poč. godine do danas'!B19),\"\",'Sažetak od poč. godine do danas'!B19)","v":""},0,0,0]
[{"$f":"IF(ISBLANK('Sažetak od poč. godine do danas'!A20),\"\",'Sažetak od poč. godine do danas'!A20)","v":""},{"$f":"IF(ISBLANK('Sažetak od poč. godine do danas'!B20),\"\",'Sažetak od poč. godine do danas'!B20)","v":""},0,0,0]
[{"$f":"IF(ISBLANK('Sažetak od poč. godine do danas'!A21),\"\",'Sažetak od poč. godine do danas'!A21)","v":""},{"$f":"IF(ISBLANK('Sažetak od poč. godine do danas'!B21),\"\",'Sažetak od poč. godine do danas'!B21)","v":""},0,0,0]
[{"$f":"IF(ISBLANK('Sažetak od poč. godine do danas'!A22),\"\",'Sažetak od poč. godine do danas'!A22)","v":""},{"$f":"IF(ISBLANK('Sažetak od poč. godine do danas'!B22),\"\",'Sažetak od poč. godine do danas'!B22)","v":""},0,0,0]
[{"$f":"IF(ISBLANK('Sažetak od poč. godine do danas'!A23),\"\",'Sažetak od poč. godine do danas'!A23)","v":""},{"$f":"IF(ISBLANK('Sažetak od poč. godine do danas'!B23),\"\",'Sažetak od poč. godine do danas'!B23)","v":""},0,0,0]
[{"$f":"IF(ISBLANK('Sažetak od poč. godine do danas'!A24),\"\",'Sažetak od poč. godine do danas'!A24)","v":""},{"$f":"IF(ISBLANK('Sažetak od poč. godine do danas'!B24),\"\",'Sažetak od poč. godine do danas'!B24)","v":""},0,0,0]
[{"$f":"IF(ISBLANK('Sažetak od poč. godine do danas'!A25),\"\",'Sažetak od poč. godine do danas'!A25)","v":""},{"$f":"IF(ISBLANK('Sažetak od poč. godine do danas'!B25),\"\",'Sažetak od poč. godine do danas'!B25)","v":""},0,0,0]
[{"$f":"IF(ISBLANK('Sažetak od poč. godine do danas'!A26),\"\",'Sažetak od poč. godine do danas'!A26)","v":""},{"$f":"IF(ISBLANK('Sažetak od poč. godine do danas'!B26),\"\",'Sažetak od poč. godine do danas'!B26)","v":""},0,0,0]
[{"$f":"IF(ISBLANK('Sažetak od poč. godine do danas'!A27),\"\",'Sažetak od poč. godine do danas'!A27)","v":""},{"$f":"IF(ISBLANK('Sažetak od poč. godine do danas'!B27),\"\",'Sažetak od poč. godine do danas'!B27)","v":""},0,0,0]
[{"$f":"IF(ISBLANK('Sažetak od poč. godine do danas'!A28),\"\",'Sažetak od poč. godine do danas'!A28)","v":""},{"$f":"IF(ISBLANK('Sažetak od poč. godine do danas'!B28),\"\",'Sažetak od poč. godine do danas'!B28)","v":""},0,0,0]
[{"$f":"IF(ISBLANK('Sažetak od poč. godine do danas'!A29),\"\",'Sažetak od poč. godine do danas'!A29)","v":""},{"$f":"IF(ISBLANK('Sažetak od poč. godine do danas'!B29),\"\",'Sažetak od poč. godine do danas'!B29)","v":""},0,0,0]
[{"$f":"IF(ISBLANK('Sažetak od poč. godine do danas'!A30),\"\",'Sažetak od poč. godine do danas'!A30)","v":""},{"$f":"IF(ISBLANK('Sažetak od poč. godine do danas'!B30),\"\",'Sažetak od poč. godine do danas'!B30)","v":""},0,0,0]
[{"$f":"IF(ISBLANK('Sažetak od poč. godine do danas'!A31),\"\",'Sažetak od poč. godine do danas'!A31)","v":""},{"$f":"IF(ISBLANK('Sažetak od poč. godine do danas'!B31),\"\",'Sažetak od poč. godine do danas'!B31)","v":""},0,0,0]
[{"$f":"IF(ISBLANK('Sažetak od poč. godine do danas'!A32),\"\",'Sažetak od poč. godine do danas'!A32)","v":""},{"$f":"IF(ISBLANK('Sažetak od poč. godine do danas'!B32),\"\",'Sažetak od poč. godine do danas'!B32)","v":""},0,0,0]
[{"$f":"IF(ISBLANK('Sažetak od poč. godine do danas'!A33),\"\",'Sažetak od poč. godine do danas'!A33)","v":""},{"$f":"IF(ISBLANK('Sažetak od poč. godine do danas'!B33),\"\",'Sažetak od poč. godine do danas'!B33)","v":""},0,0,0]
[{"$f":"IF(ISBLANK('Sažetak od poč. godine do danas'!A34),\"\",'Sažetak od poč. godine do danas'!A34)","v":""},{"$f":"IF(ISBLANK('Sažetak od poč. godine do danas'!B34),\"\",'Sažetak od poč. godine do danas'!B34)","v":""},0,0,0]
[{"$f":"IF(ISBLANK('Sažetak od poč. godine do danas'!A35),\"\",'Sažetak od poč. godine do danas'!A35)","v":""},{"$f":"IF(ISBLANK('Sažetak od poč. godine do danas'!B35),\"\",'Sažetak od poč. godine do danas'!B35)","v":""},0,0,0]
[{"$f":"IF(ISBLANK('Sažetak od poč. godine do danas'!A36),\"\",'Sažetak od poč. godine do danas'!A36)","v":""},{"$f":"IF(ISBLANK('Sažetak od poč. godine do danas'!B36),\"\",'Sažetak od poč. godine do danas'!B36)","v":""},0,0,0]

{"sheet":"3. tromjesečje","index":3,"n_rows":36,"n_cols":97,"rows_kept":36,"merged":[[3,0,3,6]]}
[{"$f":"Naziv_tvrtke","v":"Naziv tvrtke"}]
["Evidencija prisutnosti, 3. tromjesečje"]
["Datum"]
[{"$f":"Naziv_tvrtke","v":"Naziv tvrtke"},{"$nulls":6},"POVJERLJIVO"]
["Prezime","Ime","Godišnji odmor","Slobodni dani","Bolovanje","1.7.","2.7.","3.7.","4.7.","5.7.","6.7.","7.7.","8.7.","9.7.","10.7.","11.7.","12.7.","13.7.","14.7.","15.7.","16.7.","17.7.","18.7.","19.7.","20.7.","21.7.","22.7.","23.7.","24.7.","25.7.","26.7.","27.7.","28.7.","29.7.","30.7.","31.7.","1.8.","2.8.","3.8.","4.8.","5.8.","6.8.","7.8.","8.8.","9.8.","10.8.","11.8.","12.8.","13.8.","14.8.","15.8.","16.8.","17.8.","18.8.","19.8.","20.8.","21.8.","22.8.","23.8.","24.8.","25.8.","26.8.","27.8.","28.8.","29.8.","30.8.","31.8.","1.9.","2.9.","3.9.","4.9.","5.9.","6.9.","7.9.","8.9.","9.9.","10.9.","11.9.","12.9.","13.9.","14.9.","15.9.","16.9.","17.9.","18.9.","19.9.","20.9.","21.9.","22.9.","23.9.","24.9.","25.9.","26.9.","27.9.","28.9.","29.9.","30.9."]
[{"$f":"IF(ISBLANK('Sažetak od poč. godine do danas'!A6),\"\",'Sažetak od poč. godine do danas'!A6)","v":"Prezime"},{"$f":"IF(ISBLANK('Sažetak od poč. godine do danas'!B6),\"\",'Sažetak od poč. godine do danas'!B6)","v":"Ime"},{"$f":"COUNTIF($F6:$CS6, \"G\")","v":0},{"$f":"COUNTIF($F6:$CS6, \"S\")","v":0},{"$f":"COUNTIF($F6:$CS6, \"B\")","v":0}]
[{"$f":"IF(ISBLANK('Sažetak od poč. godine do danas'!A7),\"\",'Sažetak od poč. godine do danas'!A7)","v":""},{"$f":"IF(ISBLANK('Sažetak od poč. godine do danas'!B7),\"\",'Sažetak od poč. godine do danas'!B7)","v":""},0,0,0]
[{"$f":"IF(ISBLANK('Sažetak od poč. godine do danas'!A8),\"\",'Sažetak od poč. godine do danas'!A8)","v":""},{"$f":"IF(ISBLANK('Sažetak od poč. godine do danas'!B8),\"\",'Sažetak od poč. godine do danas'!B8)","v":""},0,0,0]
[{"$f":"IF(ISBLANK('Sažetak od poč. godine do danas'!A9),\"\",'Sažetak od poč. godine do danas'!A9)","v":""},{"$f":"IF(ISBLANK('Sažetak od poč. godine do danas'!B9),\"\",'Sažetak od poč. godine do danas'!B9)","v":""},0,0,0]
[{"$f":"IF(ISBLANK('Sažetak od poč. godine do danas'!A10),\"\",'Sažetak od poč. godine do danas'!A10)","v":""},{"$f":"IF(ISBLANK('Sažetak od poč. godine do danas'!B10),\"\",'Sažetak od poč. godine do danas'!B10)","v":""},0,0,0]
[{"$f":"IF(ISBLANK('Sažetak od poč. godine do danas'!A11),\"\",'Sažetak od poč. godine do danas'!A11)","v":""},{"$f":"IF(ISBLANK('Sažetak od poč. godine do danas'!B11),\"\",'Sažetak od poč. godine do danas'!B11)","v":""},0,0,0]
[{"$f":"IF(ISBLANK('Sažetak od poč. godine do danas'!A12),\"\",'Sažetak od poč. godine do danas'!A12)","v":""},{"$f":"IF(ISBLANK('Sažetak od poč. godine do danas'!B12),\"\",'Sažetak od poč. godine do danas'!B12)","v":""},0,0,0]
[{"$f":"IF(ISBLANK('Sažetak od poč. godine do danas'!A13),\"\",'Sažetak od poč. godine do danas'!A13)","v":""},{"$f":"IF(ISBLANK('Sažetak od poč. godine do danas'!B13),\"\",'Sažetak od poč. godine do danas'!B13)","v":""},0,0,0]
[{"$f":"IF(ISBLANK('Sažetak od poč. godine do danas'!A14),\"\",'Sažetak od poč. godine do danas'!A14)","v":""},{"$f":"IF(ISBLANK('Sažetak od poč. godine do danas'!B14),\"\",'Sažetak od poč. godine do danas'!B14)","v":""},0,0,0]
[{"$f":"IF(ISBLANK('Sažetak od poč. godine do danas'!A15),\"\",'Sažetak od poč. godine do danas'!A15)","v":""},{"$f":"IF(ISBLANK('Sažetak od poč. godine do danas'!B15),\"\",'Sažetak od poč. godine do danas'!B15)","v":""},0,0,0]
[{"$f":"IF(ISBLANK('Sažetak od poč. godine do danas'!A16),\"\",'Sažetak od poč. godine do danas'!A16)","v":""},{"$f":"IF(ISBLANK('Sažetak od poč. godine do danas'!B16),\"\",'Sažetak od poč. godine do danas'!B16)","v":""},0,0,0]
[{"$f":"IF(ISBLANK('Sažetak od poč. godine do danas'!A17),\"\",'Sažetak od poč. godine do danas'!A17)","v":""},{"$f":"IF(ISBLANK('Sažetak od poč. godine do danas'!B17),\"\",'Sažetak od poč. godine do danas'!B17)","v":""},0,0,0]
[{"$f":"IF(ISBLANK('Sažetak od poč. godine do danas'!A18),\"\",'Sažetak od poč. godine do danas'!A18)","v":""},{"$f":"IF(ISBLANK('Sažetak od poč. godine do danas'!B18),\"\",'Sažetak od poč. godine do danas'!B18)","v":""},0,0,0]
[{"$f":"IF(ISBLANK('Sažetak od poč. godine do danas'!A19),\"\",'Sažetak od poč. godine do danas'!A19)","v":""},{"$f":"IF(ISBLANK('Sažetak od poč. godine do danas'!B19),\"\",'Sažetak od poč. godine do danas'!B19)","v":""},0,0,0]
[{"$f":"IF(ISBLANK('Sažetak od poč. godine do danas'!A20),\"\",'Sažetak od poč. godine do danas'!A20)","v":""},{"$f":"IF(ISBLANK('Sažetak od poč. godine do danas'!B20),\"\",'Sažetak od poč. godine do danas'!B20)","v":""},0,0,0]
[{"$f":"IF(ISBLANK('Sažetak od poč. godine do danas'!A21),\"\",'Sažetak od poč. godine do danas'!A21)","v":""},{"$f":"IF(ISBLANK('Sažetak od poč. godine do danas'!B21),\"\",'Sažetak od poč. godine do danas'!B21)","v":""},0,0,0]
[{"$f":"IF(ISBLANK('Sažetak od poč. godine do danas'!A22),\"\",'Sažetak od poč. godine do danas'!A22)","v":""},{"$f":"IF(ISBLANK('Sažetak od poč. godine do danas'!B22),\"\",'Sažetak od poč. godine do danas'!B22)","v":""},0,0,0]
[{"$f":"IF(ISBLANK('Sažetak od poč. godine do danas'!A23),\"\",'Sažetak od poč. godine do danas'!A23)","v":""},{"$f":"IF(ISBLANK('Sažetak od poč. godine do danas'!B23),\"\",'Sažetak od poč. godine do danas'!B23)","v":""},0,0,0]
[{"$f":"IF(ISBLANK('Sažetak od poč. godine do danas'!A24),\"\",'Sažetak od poč. godine do danas'!A24)","v":""},{"$f":"IF(ISBLANK('Sažetak od poč. godine do danas'!B24),\"\",'Sažetak od poč. godine do danas'!B24)","v":""},0,0,0]
[{"$f":"IF(ISBLANK('Sažetak od poč. godine do danas'!A25),\"\",'Sažetak od poč. godine do danas'!A25)","v":""},{"$f":"IF(ISBLANK('Sažetak od poč. godine do danas'!B25),\"\",'Sažetak od poč. godine do danas'!B25)","v":""},0,0,0]
[{"$f":"IF(ISBLANK('Sažetak od poč. godine do danas'!A26),\"\",'Sažetak od poč. godine do danas'!A26)","v":""},{"$f":"IF(ISBLANK('Sažetak od poč. godine do danas'!B26),\"\",'Sažetak od poč. godine do danas'!B26)","v":""},0,0,0]
[{"$f":"IF(ISBLANK('Sažetak od poč. godine do danas'!A27),\"\",'Sažetak od poč. godine do danas'!A27)","v":""},{"$f":"IF(ISBLANK('Sažetak od poč. godine do danas'!B27),\"\",'Sažetak od poč. godine do danas'!B27)","v":""},0,0,0]
[{"$f":"IF(ISBLANK('Sažetak od poč. godine do danas'!A28),\"\",'Sažetak od poč. godine do danas'!A28)","v":""},{"$f":"IF(ISBLANK('Sažetak od poč. godine do danas'!B28),\"\",'Sažetak od poč. godine do danas'!B28)","v":""},0,0,0]
[{"$f":"IF(ISBLANK('Sažetak od poč. godine do danas'!A29),\"\",'Sažetak od poč. godine do danas'!A29)","v":""},{"$f":"IF(ISBLANK('Sažetak od poč. godine do danas'!B29),\"\",'Sažetak od poč. godine do danas'!B29)","v":""},0,0,0]
[{"$f":"IF(ISBLANK('Sažetak od poč. godine do danas'!A30),\"\",'Sažetak od poč. godine do danas'!A30)","v":""},{"$f":"IF(ISBLANK('Sažetak od poč. godine do danas'!B30),\"\",'Sažetak od poč. godine do danas'!B30)","v":""},0,0,0]
[{"$f":"IF(ISBLANK('Sažetak od poč. godine do danas'!A31),\"\",'Sažetak od poč. godine do danas'!A31)","v":""},{"$f":"IF(ISBLANK('Sažetak od poč. godine do danas'!B31),\"\",'Sažetak od poč. godine do danas'!B31)","v":""},0,0,0]
[{"$f":"IF(ISBLANK('Sažetak od poč. godine do danas'!A32),\"\",'Sažetak od poč. godine do danas'!A32)","v":""},{"$f":"IF(ISBLANK('Sažetak od poč. godine do danas'!B32),\"\",'Sažetak od poč. godine do danas'!B32)","v":""},0,0,0]
[{"$f":"IF(ISBLANK('Sažetak od poč. godine do danas'!A33),\"\",'Sažetak od poč. godine do danas'!A33)","v":""},{"$f":"IF(ISBLANK('Sažetak od poč. godine do danas'!B33),\"\",'Sažetak od poč. godine do danas'!B33)","v":""},0,0,0]
[{"$f":"IF(ISBLANK('Sažetak od poč. godine do danas'!A34),\"\",'Sažetak od poč. godine do danas'!A34)","v":""},{"$f":"IF(ISBLANK('Sažetak od poč. godine do danas'!B34),\"\",'Sažetak od poč. godine do danas'!B34)","v":""},0,0,0]
[{"$f":"IF(ISBLANK('Sažetak od poč. godine do danas'!A35),\"\",'Sažetak od poč. godine do danas'!A35)","v":""},{"$f":"IF(ISBLANK('Sažetak od poč. godine do danas'!B35),\"\",'Sažetak od poč. godine do danas'!B35)","v":""},0,0,0]
[{"$f":"IF(ISBLANK('Sažetak od poč. godine do danas'!A36),\"\",'Sažetak od poč. godine do danas'!A36)","v":""},{"$f":"IF(ISBLANK('Sažetak od poč. godine do danas'!B36),\"\",'Sažetak od poč. godine do danas'!B36)","v":""},0,0,0]

{"sheet":"4. tromjesečje","index":4,"n_rows":36,"n_cols":97,"rows_kept":36,"merged":[[3,0,3,6]]}
[{"$f":"Naziv_tvrtke","v":"Naziv tvrtke"}]
["Evidencija prisutnosti, 4. tromjesečje"]
["Datum"]
[{"$f":"Naziv_tvrtke","v":"Naziv tvrtke"},{"$nulls":6},"POVJERLJIVO"]
["Prezime","Ime","Godišnji odmor","Slobodni dani","Bolovanje","1.10.","2.10.","3.10.","4.10.","5.10.","6.10.","7.10.","8.10.","9.10.","10.10.","11.10.","12.10.","13.10.","14.10.","15.10.","16.10.","17.10.","18.10.","19.10.","20.10.","21.10.","22.10.","23.10.","24.10.","25.10.","26.10.","27.10.","28.10.","29.10.","30.10.","31.10.","1.11.","2.11.","3.11.","4.11.","5.11.","6.11.","7.11.","8.11.","9.11.","10.11.","11.11.","12.11.","13.11.","14.11.","15.11.","16.11.","17.11.","18.11.","19.11.","20.11.","21.11.","22.11.","23.11.","24.11.","25.11.","26.11.","27.11.","28.11.","29.11.","30.11.","1.12.","2.12.","3.12.","4.12.","5.12.","6.12.","7.12.","8.12.","9.12.","10.12.","12/11","12.12.","13.12.","14.12.","15.12.","16.12.","17.12.","18.12.","19.12.","20.12.","21.12.","22.12.","23.12.","24.12.","25.12.","26.12.","27.12.","28.12.","29.12.","30.12.","31.12."]
[{"$f":"IF(ISBLANK('Sažetak od poč. godine do danas'!A6),\"\",'Sažetak od poč. godine do danas'!A6)","v":"Prezime"},{"$f":"IF(ISBLANK('Sažetak od poč. godine do danas'!B6),\"\",'Sažetak od poč. godine do danas'!B6)","v":"Ime"},{"$f":"COUNTIF($F6:$CS6, \"G\")","v":0},{"$f":"COUNTIF($F6:CS6, \"S\")","v":0},{"$f":"COUNTIF($F6:CS6, \"B\")","v":0}]
[{"$f":"IF(ISBLANK('Sažetak od poč. godine do danas'!A7),\"\",'Sažetak od poč. godine do danas'!A7)","v":""},{"$f":"IF(ISBLANK('Sažetak od poč. godine do danas'!B7),\"\",'Sažetak od poč. godine do danas'!B7)","v":""},0,{"$f":"COUNTIF($F7:CS7, \"S\")","v":0},{"$f":"COUNTIF($F7:CS7, \"B\")","v":0}]
[{"$f":"IF(ISBLANK('Sažetak od poč. godine do danas'!A8),\"\",'Sažetak od poč. godine do danas'!A8)","v":""},{"$f":"IF(ISBLANK('Sažetak od poč. godine do danas'!B8),\"\",'Sažetak od poč. godine do danas'!B8)","v":""},0,{"$f":"COUNTIF($F8:CS8, \"S\")","v":0},{"$f":"COUNTIF($F8:CS8, \"B\")","v":0}]
[{"$f":"IF(ISBLANK('Sažetak od poč. godine do danas'!A9),\"\",'Sažetak od poč. godine do danas'!A9)","v":""},{"$f":"IF(ISBLANK('Sažetak od poč. godine do danas'!B9),\"\",'Sažetak od poč. godine do danas'!B9)","v":""},0,{"$f":"COUNTIF($F9:CS9, \"S\")","v":0},{"$f":"COUNTIF($F9:CS9, \"B\")","v":0}]
[{"$f":"IF(ISBLANK('Sažetak od poč. godine do danas'!A10),\"\",'Sažetak od poč. godine do danas'!A10)","v":""},{"$f":"IF(ISBLANK('Sažetak od poč. godine do danas'!B10),\"\",'Sažetak od poč. godine do danas'!B10)","v":""},0,{"$f":"COUNTIF($F10:CS10, \"S\")","v":0},{"$f":"COUNTIF($F10:CS10, \"B\")","v":0}]
[{"$f":"IF(ISBLANK('Sažetak od poč. godine do danas'!A11),\"\",'Sažetak od poč. godine do danas'!A11)","v":""},{"$f":"IF(ISBLANK('Sažetak od poč. godine do danas'!B11),\"\",'Sažetak od poč. godine do danas'!B11)","v":""},0,{"$f":"COUNTIF($F11:CS11, \"S\")","v":0},{"$f":"COUNTIF($F11:CS11, \"B\")","v":0}]
[{"$f":"IF(ISBLANK('Sažetak od poč. godine do danas'!A12),\"\",'Sažetak od poč. godine do danas'!A12)","v":""},{"$f":"IF(ISBLANK('Sažetak od poč. godine do danas'!B12),\"\",'Sažetak od poč. godine do danas'!B12)","v":""},0,{"$f":"COUNTIF($F12:CS12, \"S\")","v":0},{"$f":"COUNTIF($F12:CS12, \"B\")","v":0}]
[{"$f":"IF(ISBLANK('Sažetak od poč. godine do danas'!A13),\"\",'Sažetak od poč. godine do danas'!A13)","v":""},{"$f":"IF(ISBLANK('Sažetak od poč. godine do danas'!B13),\"\",'Sažetak od poč. godine do danas'!B13)","v":""},0,{"$f":"COUNTIF($F13:CS13, \"S\")","v":0},{"$f":"COUNTIF($F13:CS13, \"B\")","v":0}]
[{"$f":"IF(ISBLANK('Sažetak od poč. godine do danas'!A14),\"\",'Sažetak od poč. godine do danas'!A14)","v":""},{"$f":"IF(ISBLANK('Sažetak od poč. godine do danas'!B14),\"\",'Sažetak od poč. godine do danas'!B14)","v":""},0,{"$f":"COUNTIF($F14:CS14, \"S\")","v":0},{"$f":"COUNTIF($F14:CS14, \"B\")","v":0}]
[{"$f":"IF(ISBLANK('Sažetak od poč. godine do danas'!A15),\"\",'Sažetak od poč. godine do danas'!A15)","v":""},{"$f":"IF(ISBLANK('Sažetak od poč. godine do danas'!B15),\"\",'Sažetak od poč. godine do danas'!B15)","v":""},0,{"$f":"COUNTIF($F15:CS15, \"S\")","v":0},{"$f":"COUNTIF($F15:CS15, \"B\")","v":0}]
[{"$f":"IF(ISBLANK('Sažetak od poč. godine do danas'!A16),\"\",'Sažetak od poč. godine do danas'!A16)","v":""},{"$f":"IF(ISBLANK('Sažetak od poč. godine do danas'!B16),\"\",'Sažetak od poč. godine do danas'!B16)","v":""},0,{"$f":"COUNTIF($F16:CS16, \"S\")","v":0},{"$f":"COUNTIF($F16:CS16, \"B\")","v":0}]
[{"$f":"IF(ISBLANK('Sažetak od poč. godine do danas'!A17),\"\",'Sažetak od poč. godine do danas'!A17)","v":""},{"$f":"IF(ISBLANK('Sažetak od poč. godine do danas'!B17),\"\",'Sažetak od poč. godine do danas'!B17)","v":""},0,{"$f":"COUNTIF($F17:CS17, \"S\")","v":0},{"$f":"COUNTIF($F17:CS17, \"B\")","v":0}]
[{"$f":"IF(ISBLANK('Sažetak od poč. godine do danas'!A18),\"\",'Sažetak od poč. godine do danas'!A18)","v":""},{"$f":"IF(ISBLANK('Sažetak od poč. godine do danas'!B18),\"\",'Sažetak od poč. godine do danas'!B18)","v":""},0,{"$f":"COUNTIF($F18:CS18, \"S\")","v":0},{"$f":"COUNTIF($F18:CS18, \"B\")","v":0}]
[{"$f":"IF(ISBLANK('Sažetak od poč. godine do danas'!A19),\"\",'Sažetak od poč. godine do danas'!A19)","v":""},{"$f":"IF(ISBLANK('Sažetak od poč. godine do danas'!B19),\"\",'Sažetak od poč. godine do danas'!B19)","v":""},0,{"$f":"COUNTIF($F19:CS19, \"S\")","v":0},{"$f":"COUNTIF($F19:CS19, \"B\")","v":0}]
[{"$f":"IF(ISBLANK('Sažetak od poč. godine do danas'!A20),\"\",'Sažetak od poč. godine do danas'!A20)","v":""},{"$f":"IF(ISBLANK('Sažetak od poč. godine do danas'!B20),\"\",'Sažetak od poč. godine do danas'!B20)","v":""},0,{"$f":"COUNTIF($F20:CS20, \"S\")","v":0},{"$f":"COUNTIF($F20:CS20, \"B\")","v":0}]
[{"$f":"IF(ISBLANK('Sažetak od poč. godine do danas'!A21),\"\",'Sažetak od poč. godine do danas'!A21)","v":""},{"$f":"IF(ISBLANK('Sažetak od poč. godine do danas'!B21),\"\",'Sažetak od poč. godine do danas'!B21)","v":""},0,{"$f":"COUNTIF($F21:CS21, \"S\")","v":0},{"$f":"COUNTIF($F21:CS21, \"B\")","v":0}]
[{"$f":"IF(ISBLANK('Sažetak od poč. godine do danas'!A22),\"\",'Sažetak od poč. godine do danas'!A22)","v":""},{"$f":"IF(ISBLANK('Sažetak od poč. godine do danas'!B22),\"\",'Sažetak od poč. godine do danas'!B22)","v":""},0,{"$f":"COUNTIF($F22:CS22, \"S\")","v":0},{"$f":"COUNTIF($F22:CS22, \"B\")","v":0}]
[{"$f":"IF(ISBLANK('Sažetak od poč. godine do danas'!A23),\"\",'Sažetak od poč. godine do danas'!A23)","v":""},{"$f":"IF(ISBLANK('Sažetak od poč. godine do danas'!B23),\"\",'Sažetak od poč. godine do danas'!B23)","v":""},0,{"$f":"COUNTIF($F23:CS23, \"S\")","v":0},{"$f":"COUNTIF($F23:CS23, \"B\")","v":0}]
[{"$f":"IF(ISBLANK('Sažetak od poč. godine do danas'!A24),\"\",'Sažetak od poč. godine do danas'!A24)","v":""},{"$f":"IF(ISBLANK('Sažetak od poč. godine do danas'!B24),\"\",'Sažetak od poč. godine do danas'!B24)","v":""},0,{"$f":"COUNTIF($F24:CS24, \"S\")","v":0},{"$f":"COUNTIF($F24:CS24, \"B\")","v":0}]
[{"$f":"IF(ISBLANK('Sažetak od poč. godine do danas'!A25),\"\",'Sažetak od poč. godine do danas'!A25)","v":""},{"$f":"IF(ISBLANK('Sažetak od poč. godine do danas'!B25),\"\",'Sažetak od poč. godine do danas'!B25)","v":""},0,{"$f":"COUNTIF($F25:CS25, \"S\")","v":0},{"$f":"COUNTIF($F25:CS25, \"B\")","v":0}]
[{"$f":"IF(ISBLANK('Sažetak od poč. godine do danas'!A26),\"\",'Sažetak od poč. godine do danas'!A26)","v":""},{"$f":"IF(ISBLANK('Sažetak od poč. godine do danas'!B26),\"\",'Sažetak od poč. godine do danas'!B26)","v":""},0,{"$f":"COUNTIF($F26:CS26, \"S\")","v":0},{"$f":"COUNTIF($F26:CS26, \"B\")","v":0}]
[{"$f":"IF(ISBLANK('Sažetak od poč. godine do danas'!A27),\"\",'Sažetak od poč. godine do danas'!A27)","v":""},{"$f":"IF(ISBLANK('Sažetak od poč. godine do danas'!B27),\"\",'Sažetak od poč. godine do danas'!B27)","v":""},0,{"$f":"COUNTIF($F27:CS27, \"S\")","v":0},{"$f":"COUNTIF($F27:CS27, \"B\")","v":0}]
[{"$f":"IF(ISBLANK('Sažetak od poč. godine do danas'!A28),\"\",'Sažetak od poč. godine do danas'!A28)","v":""},{"$f":"IF(ISBLANK('Sažetak od poč. godine do danas'!B28),\"\",'Sažetak od poč. godine do danas'!B28)","v":""},0,{"$f":"COUNTIF($F28:CS28, \"S\")","v":0},{"$f":"COUNTIF($F28:CS28, \"B\")","v":0}]
[{"$f":"IF(ISBLANK('Sažetak od poč. godine do danas'!A29),\"\",'Sažetak od poč. godine do danas'!A29)","v":""},{"$f":"IF(ISBLANK('Sažetak od poč. godine do danas'!B29),\"\",'Sažetak od poč. godine do danas'!B29)","v":""},0,{"$f":"COUNTIF($F29:CS29, \"S\")","v":0},{"$f":"COUNTIF($F29:CS29, \"B\")","v":0}]
[{"$f":"IF(ISBLANK('Sažetak od poč. godine do danas'!A30),\"\",'Sažetak od poč. godine do danas'!A30)","v":""},{"$f":"IF(ISBLANK('Sažetak od poč. godine do danas'!B30),\"\",'Sažetak od poč. godine do danas'!B30)","v":""},0,{"$f":"COUNTIF($F30:CS30, \"S\")","v":0},{"$f":"COUNTIF($F30:CS30, \"B\")","v":0}]
[{"$f":"IF(ISBLANK('Sažetak od poč. godine do danas'!A31),\"\",'Sažetak od poč. godine do danas'!A31)","v":""},{"$f":"IF(ISBLANK('Sažetak od poč. godine do danas'!B31),\"\",'Sažetak od poč. godine do danas'!B31)","v":""},0,{"$f":"COUNTIF($F31:CS31, \"S\")","v":0},{"$f":"COUNTIF($F31:CS31, \"B\")","v":0}]
[{"$f":"IF(ISBLANK('Sažetak od poč. godine do danas'!A32),\"\",'Sažetak od poč. godine do danas'!A32)","v":""},{"$f":"IF(ISBLANK('Sažetak od poč. godine do danas'!B32),\"\",'Sažetak od poč. godine do danas'!B32)","v":""},0,{"$f":"COUNTIF($F32:CS32, \"S\")","v":0},{"$f":"COUNTIF($F32:CS32, \"B\")","v":0}]
[{"$f":"IF(ISBLANK('Sažetak od poč. godine do danas'!A33),\"\",'Sažetak od poč. godine do danas'!A33)","v":""},{"$f":"IF(ISBLANK('Sažetak od poč. godine do danas'!B33),\"\",'Sažetak od poč. godine do danas'!B33)","v":""},0,{"$f":"COUNTIF($F33:CS33, \"S\")","v":0},{"$f":"COUNTIF($F33:CS33, \"B\")","v":0}]
[{"$f":"IF(ISBLANK('Sažetak od poč. godine do danas'!A34),\"\",'Sažetak od poč. godine do danas'!A34)","v":""},{"$f":"IF(ISBLANK('Sažetak od poč. godine do danas'!B34),\"\",'Sažetak od poč. godine do danas'!B34)","v":""},0,{"$f":"COUNTIF($F34:CS34, \"S\")","v":0},{"$f":"COUNTIF($F34:CS34, \"B\")","v":0}]
[{"$f":"IF(ISBLANK('Sažetak od poč. godine do danas'!A35),\"\",'Sažetak od poč. godine do danas'!A35)","v":""},{"$f":"IF(ISBLANK('Sažetak od poč. godine do danas'!B35),\"\",'Sažetak od poč. godine do danas'!B35)","v":""},0,{"$f":"COUNTIF($F35:CS35, \"S\")","v":0},{"$f":"COUNTIF($F35:CS35, \"B\")","v":0}]
[{"$f":"IF(ISBLANK('Sažetak od poč. godine do danas'!A36),\"\",'Sažetak od poč. godine do danas'!A36)","v":""},{"$f":"IF(ISBLANK('Sažetak od poč. godine do danas'!B36),\"\",'Sažetak od poč. godine do danas'!B36)","v":""},0,{"$f":"COUNTIF($F36:CS36, \"S\")","v":0},{"$f":"COUNTIF($F36:CS36, \"B\")","v":0}]